[Event "Kwalificatie NJK B Groningen"]
[Site "Hoogkerk, Netherlands"]
[Date "2023.02.18"]
[Round "2.3"]
[White "Etienne, Ghilon"]
[Black "Van Arendonk, Polle"]
[Result "1-0"]
[TimeControl "55 min. + 10 sec./zet"]
[WhiteElo "1673"]
[BlackElo "1906"]

1. e4 {[%clk 00:55:16]} {[%emt 00:00:03]} e5 {[%emt 00:00:09]} 2. Nf3 {[%clk
00:55:20]} Nc6 {[%clk 00:55:24]} {[%emt 00:00:04]} 3. d4 {[%clk 00:55:26]}
{[%emt 00:00:04]} exd4 {[%clk 00:55:31]} {[%emt 00:00:03]} 4. Nxd4 {[%clk
00:55:31]} {[%emt 00:00:04]} Bc5 {[%clk 00:55:37]} {[%emt 00:00:04]} 5. Be3
{[%clk 00:55:37]} {[%emt 00:00:05]} Qf6 {[%clk 00:55:42]} {[%emt 00:00:04]} 6.
c3 {[%clk 00:55:42]} {[%emt 00:00:05]} Nge7 {[%clk 00:55:46]} {[%emt 00:00:07]}
7. Be2 {[%clk 00:55:34]} {[%emt 00:00:18]} Qg6 {[%clk 00:54:59]} {[%emt
00:00:57]} 8. O-O {[%clk 00:55:02]} {[%emt 00:00:42]} O-O {[%clk 00:54:52]}
{[%emt 00:00:17]} 9. Nxc6 {[%clk 00:52:14]} {[%emt 00:02:58]} Qxc6 {[%clk
00:54:56]} {[%emt 00:00:06]} 10. Bxc5 {[%clk 00:52:19]} {[%emt 00:00:05]} Qxc5
{[%clk 00:55:00]} {[%emt 00:00:06]} 11. Nd2 {[%clk 00:52:25]} {[%emt 00:00:04]}
Ng6 {[%clk 00:52:42]} {[%emt 00:02:28]} 12. Nb3 {[%clk 00:51:45]} {[%emt
00:00:50]} Qg5 {[%clk 00:51:43]} {[%emt 00:01:09]} 13. Qd5 {[%clk 00:49:27]}
{[%emt 00:02:28]} Qf6 {[%clk 00:49:08]} {[%emt 00:02:44]} 14. Qd2 {[%clk
00:47:44]} {[%emt 00:01:53]} Nf4 {[%clk 00:47:44]} {[%emt 00:01:34]} 15. Bf3
{[%clk 00:47:35]} {[%emt 00:00:19]} d6 {[%clk 00:46:01]} {[%emt 00:01:54]} 16.
Rfe1 {[%clk 00:46:03]} {[%emt 00:01:41]} Re8 {[%clk 00:42:15]} {[%emt
00:03:56]} 17. Re3 {[%clk 00:44:38]} {[%emt 00:01:35]} Qg5 {[%clk 00:38:33]}
{[%emt 00:03:52]} 18. Kh1 {[%clk 00:43:41]} {[%emt 00:01:08]} Re6 {[%clk
00:35:37]} {[%emt 00:03:06]} 19. g3 {[%clk 00:42:17]} {[%emt 00:01:33]} Ng6
{[%clk 00:35:05]} {[%emt 00:00:43]} 20. Re2 {[%clk 00:41:36]} {[%emt 00:00:50]}
Qf6 {[%clk 00:34:12]} {[%emt 00:01:03]} 21. Bg2 {[%clk 00:41:20]} {[%emt
00:00:26]} Re7 {[%clk 00:29:55]} {[%emt 00:04:27]} 22. Ree1 {[%clk 00:38:15]}
{[%emt 00:03:15]} Bg4 {[%clk 00:25:50]} {[%emt 00:04:16]} 23. f4 {[%clk
00:35:11]} {[%emt 00:03:14]} Rae8 {[%clk 00:25:26]} {[%emt 00:00:33]} 24. Qd4
{[%clk 00:31:33]} {[%emt 00:03:46]} a6 {[%clk 00:19:50]} {[%emt 00:05:48]} 25.
Nd2 {[%clk 00:26:31]} {[%emt 00:05:11]} Bd7 {[%clk 00:17:49]} {[%emt 00:02:12]}
26. Re3 {[%clk 00:25:24]} {[%emt 00:01:16]} Bc6 {[%clk 00:15:42]} {[%emt
00:02:18]} 27. Rae1 {[%clk 00:24:53]} {[%emt 00:00:41]} Nf8 {[%clk 00:13:18]}
{[%emt 00:02:33]} 28. Nb3 {[%clk 00:20:53]} {[%emt 00:04:10]} Qe6 {[%clk
00:10:41]} {[%emt 00:02:48]} 29. Kg1 {[%clk 00:14:36]} {[%emt 00:06:26]} Nd7
{[%clk 00:06:29]} {[%emt 00:04:22]} 30. R1e2 {[%clk 00:14:03]} {[%emt
00:00:44]} Nf6 {[%clk 00:03:29]} {[%emt 00:03:10]} 31. h3 {[%clk 00:12:15]}
{[%emt 00:01:58]} Nh5 {[%clk 00:01:51]} {[%emt 00:01:48]} 32. Kh2 {[%clk
00:11:47]} {[%emt 00:00:38]} Qf6 {[%clk 00:00:22]} {[%emt 00:01:39]} 33. Re1
{[%clk 00:10:10]} {[%emt 00:01:46]} Qg6 {[%clk 00:00:15]} {[%emt 00:00:18]} 34.
Nd2 {[%clk 00:09:28]} {[%emt 00:00:50]} Qe6 {[%clk 00:00:15]} {[%emt 00:00:11]}
35. b3 {[%clk 00:09:13]} {[%emt 00:00:25]} Qh6 {[%clk 00:00:18]} {[%emt
00:00:08]} 36. e5 {[%clk 00:07:49]} {[%emt 00:01:33]} Bxg2 {[%clk 00:00:00]}
{[%emt 00:00:18]} 1-0

[Event "Kwalificatie NJK B Groningen"]
[Site "Hoogkerk, Netherlands"]
[Date "2023.02.18"]
[Round "2.4"]
[White "Ritzerveld, Noah"]
[Black "Tangarife Ramirez, Katja"]
[Result "1-0"]
[TimeControl "55 min. + 10 sec./zet"]
[WhiteElo "1868"]
[BlackElo "1678"]

1. e4 {[%clk 00:55:17]} {[%emt 00:00:02]} c6 {[%clk 00:55:11]} {[%emt
00:00:09]} 2. d4 {[%clk 00:55:22]} {[%emt 00:00:04]} d5 {[%clk 00:55:17]}
{[%emt 00:00:04]} 3. Nc3 {[%clk 00:55:28]} {[%emt 00:00:05]} dxe4 {[%clk
00:55:19]} {[%emt 00:00:08]} 4. Nxe4 {[%clk 00:55:33]} {[%emt 00:00:05]} Bf5
{[%clk 00:55:23]} {[%emt 00:00:05]} 5. Ng3 {[%clk 00:55:37]} {[%emt 00:00:06]}
Bg6 {[%clk 00:55:29]} {[%emt 00:00:05]} 6. h4 {[%clk 00:55:39]} {[%emt
00:00:08]} h6 {[%clk 00:55:33]} {[%emt 00:00:06]} 7. h5 {[%clk 00:55:41]}
{[%emt 00:00:08]} Bh7 {[%clk 00:55:37]} {[%emt 00:00:06]} 8. Nf3 {[%clk
00:55:46]} {[%emt 00:00:05]} e6 {[%clk 00:54:47]} {[%emt 00:01:00]} 9. Bd3
{[%clk 00:55:42]} {[%emt 00:00:14]} Bxd3 {[%clk 00:54:46]} {[%emt 00:00:11]} 10.
Qxd3 {[%clk 00:55:45]} {[%emt 00:00:06]} Nf6 {[%clk 00:52:18]} {[%emt
00:02:39]} 11. Be3 {[%clk 00:54:31]} {[%emt 00:01:23]} Bb4+ {[%clk 00:50:18]}
{[%emt 00:02:11]} 12. c3 {[%clk 00:53:57]} {[%emt 00:00:44]} Bd6 {[%clk
00:50:14]} {[%emt 00:00:13]} 13. Ne4 {[%clk 00:52:04]} {[%emt 00:02:04]} Be7
{[%clk 00:45:53]} {[%emt 00:04:31]} 14. O-O-O {[%clk 00:45:56]} {[%emt
00:06:17]} Nbd7 {[%clk 00:44:18]} {[%emt 00:01:46]} 15. Kb1 {[%clk 00:44:19]}
{[%emt 00:01:47]} Nxe4 {[%clk 00:42:33]} {[%emt 00:01:55]} 16. Qxe4 {[%clk
00:43:31]} {[%emt 00:00:57]} Nf6 {[%clk 00:42:35]} {[%emt 00:00:09]} 17. Qd3
{[%clk 00:42:05]} {[%emt 00:01:36]} O-O {[%clk 00:40:31]} {[%emt 00:02:13]} 18.
Ne5 {[%clk 00:32:36]} {[%emt 00:09:39]} Nd5 {[%clk 00:37:21]} {[%emt 00:03:21]}
19. f4 {[%clk 00:25:48]} {[%emt 00:06:58]} Bd6 {[%clk 00:32:39]} {[%emt
00:04:52]} 20. g4 {[%clk 00:22:32]} {[%emt 00:03:26]} Nxe3 {[%clk 00:29:48]}
{[%emt 00:03:00]} 21. Qxe3 {[%clk 00:22:35]} {[%emt 00:00:08]} Qe7 {[%clk
00:27:29]} {[%emt 00:02:29]} 22. g5 {[%clk 00:20:53]} {[%emt 00:01:51]} Bxe5
{[%clk 00:25:47]} {[%emt 00:01:51]} 23. dxe5 {[%clk 00:20:07]} {[%emt
00:00:58]} hxg5 {[%clk 00:21:19]} {[%emt 00:04:37]} 24. fxg5 {[%clk 00:18:49]}
{[%emt 00:01:28]} Rfd8 {[%clk 00:20:17]} {[%emt 00:01:13]} 25. Rdg1 {[%clk
00:16:14]} {[%emt 00:02:44]} Qd7 {[%clk 00:18:57]} {[%emt 00:01:30]} 26. Kc2
{[%clk 00:16:14]} {[%emt 00:00:11]} c5 {[%clk 00:15:56]} {[%emt 00:03:10]} 27.
g6 {[%clk 00:14:39]} {[%emt 00:01:45]} c4 {[%clk 00:12:32]} {[%emt 00:03:34]}
28. gxf7+ {[%clk 00:13:30]} {[%emt 00:01:20]} Qxf7 {[%clk 00:11:34]} {[%emt
00:01:07]} 29. h6 {[%clk 00:10:44]} {[%emt 00:02:57]} Qf5+ {[%clk 00:10:46]}
{[%emt 00:00:57]} 30. Kc1 {[%clk 00:10:05]} {[%emt 00:00:49]} Rd7 {[%clk
00:07:10]} {[%emt 00:03:47]} 31. hxg7 {[%clk 00:09:32]} {[%emt 00:00:43]} Rxg7
{[%clk 00:06:29]} {[%emt 00:00:50]} 32. Qh6 {[%clk 00:09:28]} {[%emt 00:00:14]}
Qxe5 {[%clk 00:03:25]} {[%emt 00:03:15]} 33. Qh8+ {[%clk 00:09:30]} {[%emt
00:00:08]} Kf7 {[%clk 00:03:26]} {[%emt 00:00:08]} 34. Rxg7+ {[%clk 00:09:34]}
{[%emt 00:00:06]} Qxg7 {[%clk 00:03:20]} {[%emt 00:00:16]} 35. Rf1+ {[%clk
00:09:40]} {[%emt 00:00:04]} 1-0

[Event "Kwalificatie NJK B Groningen"]
[Site "Hoogkerk, Netherlands"]
[Date "2023.02.18"]
[Round "2.5"]
[White "Roorda, Cas"]
[Black "Krylov, Philippe"]
[Result "1/2-1/2"]
[TimeControl "55 min. + 10 sec./zet"]
[WhiteElo "1654"]
[BlackElo "1862"]

1. e4 {[%clk 00:55:18]} c6 {[%clk 00:55:17]} {[%emt 00:00:09]} 2. d4 {[%clk
00:55:24]} d5 {[%clk 00:55:25]} {[%emt 00:00:15]} 3. e5 {[%clk 00:55:29]}
{[%emt 00:00:23]} Bf5 {[%clk 00:55:32]} 4. h4 {[%clk 00:55:34]} h5 {[%clk
00:55:40]} 5. Bd3 {[%clk 00:55:39]} Bxd3 {[%clk 00:55:47]} {[%emt 00:00:23]} 6.
Qxd3 {[%clk 00:55:42]} Qa5+ {[%clk 00:55:54]} 7. Nd2 {[%clk 00:55:43]} e6
{[%clk 00:55:48]} 8. Ngf3 {[%clk 00:55:47]} {[%emt 00:00:09]} Qa6 {[%clk
00:55:47]} {[%emt 00:00:13]} 9. c4 {[%clk 00:55:52]} Nd7 {[%clk 00:52:12]}
{[%emt 00:04:21]} 10. O-O {[%clk 00:54:28]} {[%emt 00:01:29]} Nb6 {[%clk
00:50:25]} {[%emt 00:01:24]} 11. b3 {[%clk 00:51:42]} {[%emt 00:02:55]} c5
{[%clk 00:44:33]} {[%emt 00:06:07]} 12. a4 {[%clk 00:34:45]} {[%emt 00:17:08]}
dxc4 {[%clk 00:39:27]} {[%emt 00:05:17]} 13. bxc4 {[%clk 00:32:27]} {[%emt
00:02:20]} Rd8 {[%clk 00:38:45]} {[%emt 00:00:53]} 14. a5 {[%clk 00:24:58]}
{[%emt 00:07:39]} Nd7 {[%clk 00:38:45]} {[%emt 00:00:57]} 15. Ba3 {[%clk
00:20:40]} {[%emt 00:03:40]} Ne7 {[%clk 00:26:49]} {[%emt 00:12:06]} 16. Rfd1
{[%clk 00:16:11]} {[%emt 00:04:43]} Nc6 {[%clk 00:25:56]} {[%emt 00:01:03]} 17.
Ne4 {[%emt 00:04:07]} Ndxe5 {[%clk 00:24:36]} 18. Nxe5 {[%clk 00:12:58]} {[%emt
00:01:49]} Nxe5 {[%clk 00:23:17]} {[%emt 00:00:32]} 19. Qg3 {[%clk 00:12:16]}
{[%emt 00:01:34]} Nxc4 {[%clk 00:15:32]} {[%emt 00:07:13]} 20. Nxc5 {[%clk
00:11:22]} {[%emt 00:01:30]} Qc6 {[%clk 00:14:06]} {[%emt 00:01:11]} 21. d5
{[%clk 00:11:08]} {[%emt 00:00:27]} Qd6 {[%clk 00:11:53]} {[%emt 00:02:42]} 22.
Qxd6 {[%clk 00:08:30]} {[%emt 00:03:18]} Bxd6 {[%clk 00:06:32]} {[%emt
00:04:37]} 23. dxe6 {[%clk 00:07:33]} {[%emt 00:01:07]} Nxa3 {[%emt 00:05:21]}
24. Nxb7 1/2-1/2

[Event "Kwalificatie NJK B Groningen"]
[Site "Hoogkerk, Netherlands"]
[Date "2023.02.18"]
[Round "2.6"]
[White "Van Foreest, Nanne"]
[Black "Haque, Nishaaz"]
[Result "0-1"]
[TimeControl "55 min. + 10 sec./zet"]
[WhiteElo "1862"]
[BlackElo "1669"]

1. e4 {[%clk 00:55:13]} {[%emt 00:00:09]} c5 {[%clk 00:55:19]} 2. c3 {[%clk
00:55:18]} {[%emt 00:00:10]} Nf6 {[%clk 00:55:22]} {[%emt 00:00:05]} 3. e5
{[%clk 00:55:27]} {[%emt 00:00:04]} Nd5 {[%clk 00:55:26]} {[%emt 00:00:04]} 4.
d4 {[%clk 00:55:33]} {[%emt 00:00:04]} cxd4 {[%clk 00:55:32]} {[%emt 00:00:12]}
5. Nf3 {[%clk 00:55:40]} Nc6 {[%clk 00:55:33]} {[%emt 00:00:05]} 6. Bc4 {[%clk
00:55:26]} {[%emt 00:00:20]} Nb6 {[%clk 00:55:36]} {[%emt 00:00:07]} 7. Bb3
{[%clk 00:55:30]} {[%emt 00:00:06]} d5 {[%clk 00:55:40]} {[%emt 00:00:06]} 8.
exd6 {[%clk 00:55:34]} {[%emt 00:00:06]} Qxd6 {[%clk 00:55:45]} {[%emt
00:00:05]} 9. O-O {[%clk 00:55:36]} {[%emt 00:00:08]} Be6 {[%clk 00:55:44]}
{[%emt 00:00:10]} 10. Qe2 {[%clk 00:54:18]} {[%emt 00:01:34]} d3 {[%clk
00:55:10]} {[%emt 00:00:43]} 11. Qe4 {[%clk 00:53:44]} {[%emt 00:00:46]} Bxb3
{[%clk 00:53:58]} {[%emt 00:01:15]} 12. axb3 {[%clk 00:53:48]} {[%emt
00:00:06]} Qd5 {[%clk 00:53:58]} {[%emt 00:00:11]} 13. Qxd5 {[%clk 00:52:54]}
{[%emt 00:01:06]} Nxd5 {[%clk 00:53:59]} {[%emt 00:00:11]} 14. Rd1 {[%clk
00:52:58]} {[%emt 00:00:04]} e6 {[%clk 00:54:03]} {[%emt 00:00:06]} 15. Rxd3
{[%clk 00:52:39]} {[%emt 00:00:27]} Be7 {[%clk 00:53:45]} {[%emt 00:00:32]} 16.
b4 {[%clk 00:51:02]} {[%emt 00:01:47]} Bf6 {[%clk 00:52:16]} {[%emt 00:01:35]}
17. Na3 {[%clk 00:48:29]} {[%emt 00:02:46]} O-O {[%clk 00:51:38]} {[%emt
00:03:15]} 18. Bd2 {[%clk 00:46:45]} {[%emt 00:05:28]} Rad8 {[%clk 00:48:02]}
19. Nb5 {[%clk 00:43:56]} {[%emt 00:00:41]} a6 {[%clk 00:47:13]} {[%emt
00:00:59]} 20. Nbd4 {[%clk 00:43:54]} {[%emt 00:00:12]} Ndxb4 {[%clk 00:46:55]}
{[%emt 00:00:28]} 21. cxb4 {[%clk 00:33:42]} {[%emt 00:10:30]} Nxd4 {[%clk
00:46:44]} {[%emt 00:00:13]} 22. Ne1 {[%clk 00:23:20]} {[%emt 00:10:35]} Nc2
{[%clk 00:44:47]} {[%emt 00:02:04]} 23. Rxd8 {[%clk 00:20:25]} {[%emt
00:03:05]} Rxd8 {[%clk 00:44:28]} {[%emt 00:00:34]} 24. Nxc2 {[%clk 00:20:22]}
{[%emt 00:00:08]} Rxd2 {[%clk 00:44:34]} {[%emt 00:00:06]} 25. Ne3 {[%clk
00:20:00]} {[%emt 00:00:31]} Bxb2 {[%clk 00:44:26]} {[%emt 00:00:20]} 26. Rb1
{[%clk 00:20:05]} {[%emt 00:00:08]} Bd4 {[%clk 00:43:46]} {[%emt 00:00:42]} 27.
b5 {[%clk 00:14:43]} {[%emt 00:05:39]} axb5 {[%clk 00:43:06]} {[%emt 00:00:44]}
28. Rxb5 {[%clk 00:13:24]} {[%emt 00:01:28]} Rb2 {[%clk 00:43:06]} {[%emt
00:00:10]} 29. Rxb2 {[%clk 00:12:17]} {[%emt 00:01:17]} Bxb2 {[%clk 00:43:14]}
{[%emt 00:00:10]} 30. Nc4 {[%clk 00:12:19]} {[%emt 00:00:10]} Bd4 {[%clk
00:43:02]} {[%emt 00:00:12]} 31. Nd6 {[%clk 00:12:28]} b6 {[%clk 00:43:00]}
{[%emt 00:00:13]} 32. Kf1 {[%clk 00:12:22]} {[%emt 00:00:16]} Kf8 {[%clk
00:43:03]} {[%emt 00:00:12]} 33. Ke2 {[%clk 00:12:04]} {[%emt 00:00:23]} Ke7
{[%clk 00:42:42]} {[%emt 00:00:36]} 34. Nb5 {[%clk 00:12:09]} {[%emt 00:00:13]}
Bc5 {[%clk 00:42:22]} {[%emt 00:00:17]} 35. f3 {[%clk 00:12:14]} {[%emt
00:00:06]} Kd7 {[%clk 00:42:27]} {[%emt 00:00:05]} 36. Kd3 {[%clk 00:12:16]}
{[%emt 00:00:08]} Kc6 {[%clk 00:42:02]} {[%emt 00:00:37]} 37. Kc4 {[%clk
00:12:22]} {[%emt 00:00:04]} h5 {[%clk 00:42:04]} {[%emt 00:00:06]} 38. Nc3
{[%clk 00:10:55]} {[%emt 00:01:39]} Kd6 {[%clk 00:40:58]} {[%emt 00:05:58]} 39.
Ne4+ {[%clk 00:05:43]} {[%emt 00:00:38]} Ke5 {[%clk 00:41:03]} {[%emt
00:00:20]} 40. Ng3 {[%clk 00:05:44]} h4 {[%clk 00:40:29]} {[%emt 00:00:38]} 41.
Ne2 {[%clk 00:05:50]} {[%emt 00:00:06]} g5 {[%clk 00:39:50]} {[%emt 00:00:46]}
42. Kd3 {[%clk 00:05:18]} {[%emt 00:00:42]} f5 {[%clk 00:38:56]} {[%emt
00:01:13]} 43. Kc4 {[%clk 00:03:32]} {[%emt 00:01:48]} g4 {[%clk 00:36:32]}
{[%emt 00:02:48]} 44. h3 {[%clk 00:03:36]} Kf6 {[%clk 00:36:01]} {[%emt
00:00:36]} 45. fxg4 {[%clk 00:02:01]} {[%emt 00:01:41]} fxg4 {[%clk 00:36:00]}
{[%emt 00:00:12]} 46. Kd3 {[%clk 00:01:53]} {[%emt 00:00:30]} Kf5 {[%clk
00:35:51]} {[%emt 00:00:08]} 47. hxg4+ {[%clk 00:01:56]} {[%emt 00:00:23]} Kxg4
{[%clk 00:35:54]} 48. Ke4 {[%clk 00:01:24]} {[%emt 00:00:32]} b5 {[%clk
00:34:23]} {[%emt 00:01:41]} 49. Nf4 {[%clk 00:01:04]} {[%emt 00:00:30]} e5
{[%clk 00:34:15]} {[%emt 00:00:18]} 50. Ng6 {[%clk 00:01:03]} {[%emt 00:00:10]}
Bd4 {[%clk 00:34:15]} {[%emt 00:00:11]} 51. Kd3 {[%clk 00:01:04]} {[%emt
00:00:13]} Kg5 {[%clk 00:32:59]} {[%emt 00:01:31]} 52. Ne7 {[%clk 00:01:11]}
Kf6 {[%clk 00:33:01]} {[%emt 00:00:05]} 53. Nd5+ {[%clk 00:00:54]} {[%emt
00:00:23]} Kf5 {[%clk 00:32:54]} {[%emt 00:00:17]} 54. Ne7+ {[%clk 00:01:03]}
Kg4 {[%clk 00:32:41]} {[%emt 00:00:23]} 55. Ng6 {[%clk 00:01:05]} {[%emt
00:00:11]} Kg3 {[%clk 00:32:36]} {[%emt 00:00:14]} 56. Ke4 {[%clk 00:01:06]}
{[%emt 00:00:10]} Bf2 {[%clk 00:32:27]} {[%emt 00:00:18]} 57. Kxe5 {[%clk
00:00:27]} {[%emt 00:00:49]} Kxg2 {[%clk 00:32:29]} {[%emt 00:00:07]} 58. Nf4+
{[%clk 00:00:17]} {[%emt 00:00:24]} Kg3 {[%clk 00:32:29]} {[%emt 00:00:06]} 59.
Ne2+ {[%clk 00:00:25]} {[%emt 00:00:11]} Kg4 {[%clk 00:32:29]} {[%emt
00:00:05]} 60. Nf4 {[%clk 00:00:25]} {[%emt 00:00:07]} h3 {[%clk 00:32:27]}
{[%emt 00:00:12]} 61. Nxh3 {[%clk 00:00:18]} {[%emt 00:00:17]} Kxh3 {[%clk
00:32:32]} {[%emt 00:00:05]} 62. Kd5 {[%clk 00:00:27]} b4 {[%clk 00:32:33]}
{[%emt 00:00:15]} 63. Kc4 {[%clk 00:00:35]} Bc5 {[%clk 00:32:33]} {[%emt
00:00:13]} 64. Kb3 {[%clk 00:00:42]} Kg3 {[%clk 00:32:39]} {[%emt 00:00:09]} 65.
Kc2 {[%clk 00:00:51]} Kf3 {[%clk 00:32:43]} 66. Kb3 {[%clk 00:01:00]} Ke3
{[%clk 00:32:47]} {[%emt 00:00:14]} 67. Kc2 {[%clk 00:01:09]} Ke2 {[%clk
00:32:48]} {[%emt 00:00:04]} 68. Kb3 {[%clk 00:01:12]} {[%emt 00:00:05]} Kd3
{[%clk 00:32:54]} {[%emt 00:00:04]} 69. Kb2 {[%clk 00:01:21]} Kc4 {[%clk
00:32:49]} {[%emt 00:00:19]} 70. Kc2 {[%clk 00:01:30]} b3+ {[%clk 00:32:12]}
{[%emt 00:00:45]} 71. Kb1 {[%clk 00:01:38]} Ba3 {[%clk 00:31:44]} {[%emt
00:00:42]} 72. Ka1 {[%clk 00:01:45]} {[%emt 00:00:05]} 0-1

[Event "Kwalificatie NJK B Groningen"]
[Site "Hoogkerk, Netherlands"]
[Date "2023.02.18"]
[Round "2.7"]
[White "Westerhof, Fleur"]
[Black "Niemeijer, LÃ©on"]
[Result "1/2-1/2"]
[TimeControl "55 min. + 10 sec./zet"]
[WhiteElo "1623"]
[BlackElo "1860"]

1. e4 {[%clk 00:55:17]} e6 {[%clk 00:55:19]} 2. d4 {[%clk 00:55:17]} d5 {[%clk
00:55:26]} 3. e5 {[%clk 00:55:17]} c5 {[%clk 00:55:32]} 4. c3 {[%clk 00:55:17]}
{[%emt 00:00:17]} Nc6 {[%clk 00:55:40]} 5. Nf3 {[%clk 00:55:14]} {[%emt
00:00:15]} Bd7 {[%clk 00:55:36]} 6. a3 {[%clk 00:53:44]} {[%emt 00:02:27]} c4
{[%clk 00:55:22]} 7. g3 {[%clk 00:52:06]} {[%emt 00:01:22]} Na5 {[%clk
00:54:53]} {[%emt 00:00:58]} 8. Nbd2 {[%clk 00:51:31]} {[%emt 00:00:55]} Bc6
{[%clk 00:54:22]} {[%emt 00:00:49]} 9. Bg2 {[%clk 00:50:19]} {[%emt 00:00:47]}
Qd7 {[%emt 00:00:35]} 10. O-O {[%clk 00:48:43]} {[%emt 00:01:27]} Ba4 {[%clk
00:54:09]} {[%emt 00:00:14]} 11. Qe2 {[%clk 00:47:44]} {[%emt 00:01:09]} Nb3
{[%clk 00:50:34]} {[%emt 00:03:44]} 12. Nxb3 {[%clk 00:45:07]} {[%emt
00:03:17]} Bxb3 {[%clk 00:50:41]} 13. Be3 {[%clk 00:43:09]} {[%emt 00:02:00]}
Ne7 {[%clk 00:48:12]} {[%emt 00:02:55]} 14. Rfc1 {[%clk 00:38:00]} {[%emt
00:04:44]} a5 {[%clk 00:46:32]} {[%emt 00:01:50]} 15. Nd2 {[%clk 00:36:05]}
{[%emt 00:02:18]} a4 {[%clk 00:46:10]} {[%emt 00:00:33]} 16. Nxb3 {[%clk
00:34:39]} {[%emt 00:01:26]} axb3 {[%clk 00:46:09]} {[%emt 00:00:09]} 17. Rf1
{[%clk 00:33:29]} {[%emt 00:01:19]} b5 {[%clk 00:43:01]} {[%emt 00:03:18]} 18.
Bg5 {[%clk 00:30:36]} {[%emt 00:03:29]} Ng6 {[%clk 00:35:42]} {[%emt 00:07:43]}
19. Be3 {[%clk 00:27:59]} {[%emt 00:02:06]} h6 {[%clk 00:31:15]} {[%emt
00:04:38]} 20. f4 {[%clk 00:26:26]} {[%emt 00:01:50]} Ne7 {[%clk 00:30:43]}
{[%emt 00:00:38]} 21. Qf3 {[%clk 00:22:21]} {[%emt 00:04:12]} g6 {[%clk
00:28:39]} {[%emt 00:02:13]} 22. g4 {[%clk 00:19:45]} {[%emt 00:03:00]} h5
{[%clk 00:27:38]} {[%emt 00:01:20]} 23. h3 {[%clk 00:18:56]} {[%emt 00:00:36]}
hxg4 {[%clk 00:25:47]} {[%emt 00:02:02]} 24. hxg4 {[%clk 00:18:47]} {[%emt
00:00:39]} Bh6 {[%clk 00:24:18]} {[%emt 00:01:18]} 25. Bc1 {[%clk 00:16:48]}
{[%emt 00:02:28]} Kd8 {[%clk 00:16:15]} {[%emt 00:08:20]} 26. Bh3 {[%emt
00:04:31]} Kc7 {[%clk 00:15:02]} {[%emt 00:00:46]} 27. Rb1 {[%clk 00:11:02]}
{[%emt 00:01:47]} Rh7 {[%clk 00:14:12]} {[%emt 00:01:20]} 28. Bg2 {[%clk
00:07:54]} {[%emt 00:03:13]} Rah8 {[%clk 00:10:55]} {[%emt 00:03:19]} 29. Be3
{[%clk 00:06:36]} {[%emt 00:01:21]} Rg8 {[%clk 00:07:20]} {[%emt 00:04:36]} 30.
Bc1 {[%clk 00:05:07]} {[%emt 00:00:49]} Kd8 {[%clk 00:05:03]} {[%emt 00:02:28]}
31. Ra1 {[%clk 00:04:31]} {[%emt 00:01:00]} Kc7 {[%clk 00:04:17]} {[%emt
00:01:22]} 32. Rb1 {[%clk 00:04:32]} Rgh8 {[%clk 00:03:51]} {[%emt 00:00:05]}
33. Be3 {[%clk 00:04:37]} {[%emt 00:00:15]} Rg8 {[%clk 00:03:58]} 34. Bc1
{[%clk 00:03:39]} 1/2-1/2